[Event "Late-Titled-Tuesday-Blitz-June-25-2024"]
[Site "Chess.com"]
[Date "2024.06.25"]
[Round "4"]
[White "cukricek"]
[Black "TheAlienParty"]
[Result "0-1"]
[WhiteElo "2491"]
[BlackElo "2350"]
[TimeControl "180+1"]
[EndTime "14:35:59 PDT"]
[Termination "TheAlienParty won by checkmate"]

1. g3 {[%clk 0:03:00.9]} 1... d5 {[%clk 0:02:55.9]} 2. Nf3 {[%clk 0:02:56.9]}
2... c6 {[%clk 0:02:53.3]} 3. Bg2 {[%clk 0:02:57]} 3... Bf5 {[%clk 0:02:52.9]}
4. O-O {[%clk 0:02:57]} 4... Nf6 {[%clk 0:02:51.8]} 5. d3 {[%clk 0:02:56.8]}
5... Qd7 {[%clk 0:02:51.6]} 6. Nc3 {[%clk 0:02:55.5]} 6... Bh3 {[%clk
0:02:51.6]} 7. e4 {[%clk 0:02:55.1]} 7... Bxg2 {[%clk 0:02:51.4]} 8. Kxg2 {[%clk
0:02:55.1]} 8... e6 {[%clk 0:02:46.8]} 9. Nd2 {[%clk 0:02:53]} 9... Qc7 {[%clk
0:02:44.4]} 10. f4 {[%clk 0:02:51.6]} 10... Nfd7 {[%clk 0:02:42.4]} 11. exd5
{[%clk 0:02:42.2]} 11... cxd5 {[%clk 0:02:41.7]} 12. Re1 {[%clk 0:02:42.4]}
12... Be7 {[%clk 0:02:40.5]} 13. f5 {[%clk 0:02:38.6]} 13... Qc6 {[%clk
0:02:39.5]} 14. fxe6 {[%clk 0:02:36.9]} 14... fxe6 {[%clk 0:02:39.3]} 15. Qg4
{[%clk 0:02:34.1]} 15... d4+ {[%clk 0:02:32.5]} 16. Nce4 {[%clk 0:02:27]} 16...
O-O {[%clk 0:02:31.8]} 17. Nc4 {[%clk 0:02:13.9]} 17... b5 {[%clk 0:02:28.3]}
18. Bh6 {[%clk 0:02:05.4]} 18... Rf7 {[%clk 0:02:24.5]} 19. Nd2 {[%clk
0:01:06.6]} 19... Ne5 {[%clk 0:02:16.7]} 20. Qh5 {[%clk 0:00:52.5]} 20... Nbd7
{[%clk 0:02:15.7]} 21. Bf4 {[%clk 0:00:51.1]} 21... Rf5 {[%clk 0:02:11.2]} 22.
Qe2 {[%clk 0:00:47.3]} 22... Qxc2 {[%clk 0:02:07.3]} 23. Bxe5 {[%clk 0:00:41.9]}
23... Nxe5 {[%clk 0:02:04.2]} 24. g4 {[%clk 0:00:32.8]} 24... Nxd3 {[%clk
0:01:47.6]} 25. Rf1 {[%clk 0:00:28]} 25... Nf4+ {[%clk 0:01:45.2]} 26. Rxf4
{[%clk 0:00:27.5]} 26... Rxf4 {[%clk 0:01:45.3]} 27. Ng3 {[%clk 0:00:20]} 27...
Qc6+ {[%clk 0:01:43.7]} 28. Kh3 {[%clk 0:00:20.2]} 28... Raf8 {[%clk 0:01:39.4]}
29. Nb3 {[%clk 0:00:19.6]} 29... Qd5 {[%clk 0:01:22.9]} 30. Re1 {[%clk
0:00:17.8]} 30... R8f6 {[%clk 0:01:18.5]} 31. Rc1 {[%clk 0:00:16.6]} 31... Rf2
{[%clk 0:01:16.8]} 32. Rc8+ {[%clk 0:00:16]} 32... Kf7 {[%clk 0:01:16.1]} 33.
Qd3 {[%clk 0:00:15]} 33... Qg2+ {[%clk 0:01:14.3]} 34. Kh4 {[%clk 0:00:14.5]}
34... Rh6# {[%clk 0:01:13.8]} 0-1

[Event "Late-Titled-Tuesday-Blitz-June-25-2024"]
[Site "Chess.com"]
[Date "2024.06.25"]
[Round "4"]
[White "Connectedcloud"]
[Black "ukchessbomber"]
[Result "0-1"]
[WhiteElo "2326"]
[BlackElo "2625"]
[TimeControl "180+1"]
[EndTime "14:36:01 PDT"]
[Termination "ukchessbomber won by resignation"]

1. Nf3 {[%clk 0:03:00.9]} 1... b6 {[%clk 0:03:00.9]} 2. g3 {[%clk 0:03:00.7]}
2... Bb7 {[%clk 0:03:00.8]} 3. Bg2 {[%clk 0:03:01.6]} 3... e6 {[%clk 0:03:00.9]}
4. d4 {[%clk 0:03:01.9]} 4... Nf6 {[%clk 0:03:01.3]} 5. c4 {[%clk 0:03:01.4]}
5... d5 {[%clk 0:03:00]} 6. cxd5 {[%clk 0:02:59.8]} 6... Bxd5 {[%clk 0:02:57.3]}
7. Nc3 {[%clk 0:02:59.4]} 7... Bb7 {[%clk 0:02:57.5]} 8. O-O {[%clk 0:02:59]}
8... Be7 {[%clk 0:02:57.8]} 9. Qc2 {[%clk 0:02:50.6]} 9... O-O {[%clk 0:02:57]}
10. e4 {[%clk 0:02:50.2]} 10... a6 {[%clk 0:02:56.8]} 11. Rd1 {[%clk 0:02:48.4]}
11... b5 {[%clk 0:02:56]} 12. a3 {[%clk 0:02:47.5]} 12... Nbd7 {[%clk
0:02:55.8]} 13. Bf4 {[%clk 0:02:43.7]} 13... Nb6 {[%clk 0:02:53.6]} 14. Rac1
{[%clk 0:02:41.1]} 14... Rc8 {[%clk 0:02:53.6]} 15. h3 {[%clk 0:02:24.1]} 15...
Qe8 {[%clk 0:02:53.5]} 16. Qe2 {[%clk 0:02:09]} 16... c5 {[%clk 0:02:53.4]} 17.
dxc5 {[%clk 0:02:09.2]} 17... Bxc5 {[%clk 0:02:54.3]} 18. Ne5 {[%clk 0:02:05.2]}
18... h6 {[%clk 0:02:51.6]} 19. Nd3 {[%clk 0:02:05.2]} 19... Be7 {[%clk
0:02:51]} 20. e5 {[%clk 0:02:04.5]} 20... Nfd5 {[%clk 0:02:51]} 21. Nxd5 {[%clk
0:02:00.2]} 21... Bxd5 {[%clk 0:02:51.2]} 22. Be3 {[%clk 0:01:55]} 22... Bxg2
{[%clk 0:02:50]} 23. Kxg2 {[%clk 0:01:53.4]} 23... Nd5 {[%clk 0:02:48.3]} 24.
Bd4 {[%clk 0:01:51.1]} 24... Rc4 {[%clk 0:02:47.8]} 25. Ne1 {[%clk 0:01:36.4]}
25... Qa8 {[%clk 0:02:47]} 26. Nf3 {[%clk 0:01:34.8]} 26... Rfc8 {[%clk
0:02:46.7]} 27. Rxc4 {[%clk 0:01:30.5]} 27... Rxc4 {[%clk 0:02:46.7]} 28. Kh2
{[%clk 0:01:25.3]} 28... Qc6 {[%clk 0:02:46.1]} 29. Rd2 {[%clk 0:01:23.3]} 29...
a5 {[%clk 0:02:43.8]} 30. b3 {[%clk 0:01:22.5]} 30... Rc1 {[%clk 0:02:43.7]} 31.
Bb2 {[%clk 0:01:22.7]} 31... Rb1 {[%clk 0:02:29.8]} 32. Qe4 {[%clk 0:01:20.7]}
32... Rxb2 {[%clk 0:01:54.3]} 33. Rxb2 {[%clk 0:01:20.7]} 33... Bxa3 {[%clk
0:01:55.2]} 34. Rc2 {[%clk 0:01:20.6]} 34... Qd7 {[%clk 0:01:55.3]} 35. Nd4
{[%clk 0:01:18.5]} 35... Bf8 {[%clk 0:01:39.3]} 36. Rc6 {[%clk 0:01:13.9]} 36...
a4 {[%clk 0:01:38.5]} 37. bxa4 {[%clk 0:01:13.4]} 37... bxa4 {[%clk 0:01:39.4]}
38. Ra6 {[%clk 0:01:11.2]} 38... a3 {[%clk 0:01:33.8]} 39. Nc2 {[%clk
0:01:06.7]} 39... Qc8 {[%clk 0:01:29.8]} 40. Rxa3 {[%clk 0:01:04.6]} 40... Bxa3
{[%clk 0:01:28.8]} 41. Nxa3 {[%clk 0:01:05.5]} 41... Qc5 {[%clk 0:01:28.6]} 42.
Qf3 {[%clk 0:01:03.6]} 42... Ne7 {[%clk 0:01:23.3]} 43. Qa8+ {[%clk 0:00:52.3]}
43... Kh7 {[%clk 0:01:23.6]} 44. Qe4+ {[%clk 0:00:52.8]} 44... Ng6 {[%clk
0:01:24.2]} 45. Qf3 {[%clk 0:00:45.3]} 45... Nxe5 {[%clk 0:01:24.3]} 46. Qe4+
{[%clk 0:00:45.2]} 46... f5 {[%clk 0:01:25]} 47. Qe3 {[%clk 0:00:45.2]} 47...
Qd5 {[%clk 0:01:15]} 48. h4 {[%clk 0:00:35.3]} 48... Ng4+ {[%clk 0:01:14.7]} 0-1

[Event "Late-Titled-Tuesday-Blitz-June-25-2024"]
[Site "Chess.com"]
[Date "2024.06.25"]
[Round "4"]
[White "King_Deded4d5"]
[Black "nitpicker"]
[Result "0-1"]
[WhiteElo "2487"]
[BlackElo "2338"]
[TimeControl "180+1"]
[EndTime "14:36:02 PDT"]
[Termination "nitpicker won on time"]

1. e4 {[%clk 0:03:00.2]} 1... c5 {[%clk 0:02:59.5]} 2. Nf3 {[%clk 0:02:58.3]}
2... Nc6 {[%clk 0:02:58.7]} 3. d4 {[%clk 0:02:58.3]} 3... cxd4 {[%clk
0:02:58.4]} 4. Nxd4 {[%clk 0:02:59]} 4... Nf6 {[%clk 0:02:58.7]} 5. Nc3 {[%clk
0:02:58.6]} 5... d6 {[%clk 0:02:59]} 6. Bg5 {[%clk 0:02:54.9]} 6... Qb6 {[%clk
0:02:58.9]} 7. Nb3 {[%clk 0:02:37.1]} 7... e6 {[%clk 0:02:59]} 8. Qd2 {[%clk
0:02:32.2]} 8... a6 {[%clk 0:02:59.1]} 9. Be2 {[%clk 0:01:52.5]} 9... Qc7 {[%clk
0:02:56.8]} 10. O-O-O {[%clk 0:01:46.4]} 10... Be7 {[%clk 0:02:54.7]} 11. f4
{[%clk 0:01:43.6]} 11... O-O {[%clk 0:02:52.2]} 12. Bxf6 {[%clk 0:01:32.2]}
12... gxf6 {[%clk 0:02:29.3]} 13. g4 {[%clk 0:01:20.2]} 13... Kh8 {[%clk
0:02:25.4]} 14. Rdg1 {[%clk 0:01:01]} 14... b5 {[%clk 0:02:23]} 15. g5 {[%clk
0:00:57.9]} 15... fxg5 {[%clk 0:02:16.1]} 16. fxg5 {[%clk 0:00:57.8]} 16... Ne5
{[%clk 0:02:09.8]} 17. h4 {[%clk 0:00:55.2]} 17... Bb7 {[%clk 0:02:09.6]} 18.
Bd3 {[%clk 0:00:42.4]} 18... Nf3 {[%clk 0:01:56.2]} 19. Qf4 {[%clk 0:00:34]}
19... Nxg1 {[%clk 0:01:53.7]} 20. Rxg1 {[%clk 0:00:33.6]} 20... Qc5 {[%clk
0:01:49.1]} 21. Qg3 {[%clk 0:00:25.1]} 21... Qe5 {[%clk 0:01:48.2]} 22. Qf2
{[%clk 0:00:20.5]} 22... b4 {[%clk 0:01:40.5]} 23. Ne2 {[%clk 0:00:20.4]} 23...
Bxe4 {[%clk 0:01:35.9]} 24. Bxe4 {[%clk 0:00:15.2]} 24... Qxe4 {[%clk
0:01:35.6]} 25. Ng3 {[%clk 0:00:14.9]} 25... Qg6 {[%clk 0:01:25.9]} 26. Kb1
{[%clk 0:00:11.6]} 26... f6 {[%clk 0:01:21.4]} 27. gxf6 {[%clk 0:00:08.5]} 27...
Qxf6 {[%clk 0:01:19.6]} 28. Qg2 {[%clk 0:00:03.2]} 28... Rg8 {[%clk 0:01:15.8]}
29. Qh2 {[%clk 0:00:01.3]} 29... Qf4 {[%clk 0:01:11.5]} 0-1

[Event "Late-Titled-Tuesday-Blitz-June-25-2024"]
[Site "Chess.com"]
[Date "2024.06.25"]
[Round "4"]
[White "KorolDimitriy75"]
[Black "campochess"]
[Result "1/2-1/2"]
[WhiteElo "2403"]
[BlackElo "2224"]
[TimeControl "180+1"]
[EndTime "14:36:02 PDT"]
[Termination "Game drawn by repetition"]

1. d4 {[%clk 0:03:00.9]} 1... Nf6 {[%clk 0:02:58.6]} 2. c4 {[%clk 0:03:01.1]}
2... g6 {[%clk 0:02:58.7]} 3. Nc3 {[%clk 0:03:01.3]} 3... d5 {[%clk 0:02:58.8]}
4. cxd5 {[%clk 0:03:02.2]} 4... Nxd5 {[%clk 0:02:58.4]} 5. e4 {[%clk 0:03:03.1]}
5... Nxc3 {[%clk 0:02:56.9]} 6. bxc3 {[%clk 0:03:04]} 6... Bg7 {[%clk
0:02:56.2]} 7. Nf3 {[%clk 0:03:04.9]} 7... c5 {[%clk 0:02:55.7]} 8. Rb1 {[%clk
0:03:05.3]} 8... Nc6 {[%clk 0:02:52.9]} 9. d5 {[%clk 0:03:05.1]} 9... Bxc3+
{[%clk 0:02:41.6]} 10. Bd2 {[%clk 0:03:05]} 10... Bxd2+ {[%clk 0:02:40.8]} 11.
Qxd2 {[%clk 0:03:05.9]} 11... Nd4 {[%clk 0:02:31.6]} 12. Nxd4 {[%clk 0:03:05.4]}
12... cxd4 {[%clk 0:02:31.6]} 13. Qxd4 {[%clk 0:03:06.3]} 13... O-O {[%clk
0:02:30.8]} 14. Bc4 {[%clk 0:02:55.2]} 14... Qa5+ {[%clk 0:02:27.9]} 15. Qd2
{[%clk 0:02:54.9]} 15... Qc5 {[%clk 0:02:24.1]} 16. Rc1 {[%clk 0:02:28.1]} 16...
b6 {[%clk 0:02:18.3]} 17. O-O {[%clk 0:02:25.3]} 17... Bd7 {[%clk 0:02:14.1]}
18. Bb3 {[%clk 0:01:50.2]} 18... Qd6 {[%clk 0:02:07.3]} 19. Qd4 {[%clk
0:01:49.2]} 19... e5 {[%clk 0:02:02.7]} 20. Qc4 {[%clk 0:01:04.8]} 20... Rac8
{[%clk 0:02:01.6]} 21. Qa6 {[%clk 0:01:04.6]} 21... Rxc1 {[%clk 0:01:45.2]} 22.
Rxc1 {[%clk 0:01:05.5]} 22... Qb4 {[%clk 0:01:39.8]} 23. Qxa7 {[%clk 0:01:00.8]}
23... Bg4 {[%clk 0:01:34.4]} 24. f3 {[%clk 0:00:57.9]} 24... Qd4+ {[%clk
0:01:26.4]} 25. Kh1 {[%clk 0:00:57.4]} 25... Qe3 {[%clk 0:01:26.3]} 26. Qa3
{[%clk 0:00:30.1]} 26... Rc8 {[%clk 0:01:21.8]} 27. Rxc8+ {[%clk 0:00:14.8]}
27... Bxc8 {[%clk 0:01:21.2]} 28. h3 {[%clk 0:00:15]} 28... Bxh3 {[%clk
0:01:15.6]} 29. gxh3 {[%clk 0:00:14.6]} 29... Qxf3+ {[%clk 0:01:15.3]} 30. Kg1
{[%clk 0:00:13.6]} 30... Qg3+ {[%clk 0:01:13.4]} 31. Kf1 {[%clk 0:00:13.9]}
31... Qxh3+ {[%clk 0:01:13]} 32. Ke2 {[%clk 0:00:14]} 32... Qg2+ {[%clk
0:01:12.9]} 33. Ke3 {[%clk 0:00:13.9]} 33... Qg3+ {[%clk 0:01:12.1]} 34. Ke2
{[%clk 0:00:14.1]} 34... Qg2+ {[%clk 0:01:11.4]} 35. Ke3 {[%clk 0:00:14.4]}
35... Qg3+ {[%clk 0:01:11.4]} 36. Ke2 {[%clk 0:00:14.4]} 36... Qg2+ {[%clk
0:01:11.3]} 1/2-1/2

[Event "Late-Titled-Tuesday-Blitz-June-25-2024"]
[Site "Chess.com"]
[Date "2024.06.25"]
[Round "4"]
[White "Flopezin"]
[Black "Cheer_Down"]
[Result "1-0"]
[WhiteElo "2376"]
[BlackElo "2489"]
[TimeControl "180+1"]
[EndTime "14:36:06 PDT"]
[Termination "Flopezin won by resignation"]

1. d4 {[%clk 0:03:00.9]} 1... d5 {[%clk 0:02:59.6]} 2. c4 {[%clk 0:02:59.8]}
2... e6 {[%clk 0:02:59.7]} 3. Nf3 {[%clk 0:02:59.4]} 3... Nf6 {[%clk 0:02:59.7]}
4. g3 {[%clk 0:02:59]} 4... Be7 {[%clk 0:02:59.2]} 5. Bg2 {[%clk 0:02:59.5]}
5... O-O {[%clk 0:02:59.3]} 6. O-O {[%clk 0:03:00.1]} 6... dxc4 {[%clk
0:02:58.9]} 7. Na3 {[%clk 0:02:59.5]} 7... Bxa3 {[%clk 0:02:56.5]} 8. bxa3
{[%clk 0:03:00.4]} 8... Bd7 {[%clk 0:02:53.6]} 9. a4 {[%clk 0:03:00]} 9... Bc6
{[%clk 0:02:47.5]} 10. Ba3 {[%clk 0:03:00.3]} 10... Re8 {[%clk 0:02:44.7]} 11.
Qc2 {[%clk 0:03:00.9]} 11... Bd5 {[%clk 0:02:41.5]} 12. Rfe1 {[%clk 0:02:57.1]}
12... Ne4 {[%clk 0:02:34.4]} 13. Ne5 {[%clk 0:02:52.3]} 13... Nc6 {[%clk
0:02:05.2]} 14. Nxc6 {[%clk 0:02:45.5]} 14... Bxc6 {[%clk 0:02:05.1]} 15. Bxe4
{[%clk 0:02:45.2]} 15... Qxd4 {[%clk 0:01:58.8]} 16. Bxc6 {[%clk 0:02:43.5]}
16... bxc6 {[%clk 0:01:58.7]} 17. Rac1 {[%clk 0:02:36.3]} 17... Rab8 {[%clk
0:01:55.9]} 18. Qxc4 {[%clk 0:02:34.3]} 18... Qf6 {[%clk 0:01:54.9]} 19. Qxc6
{[%clk 0:02:32.4]} 19... h5 {[%clk 0:01:53.2]} 20. h4 {[%clk 0:02:27]} 20...
Rec8 {[%clk 0:01:39.3]} 21. Red1 {[%clk 0:02:09.6]} 21... Qe5 {[%clk 0:01:33.8]}
22. Qc4 {[%clk 0:02:00.9]} 22... Rb6 {[%clk 0:01:25.2]} 23. Bc5 {[%clk 0:01:56]}
23... Rc6 {[%clk 0:01:22.8]} 24. Qb5 {[%clk 0:01:44.6]} 24... Qe4 {[%clk
0:01:19.3]} 25. Rd4 {[%clk 0:01:35.2]} 25... Qxd4 {[%clk 0:01:10.4]} 26. Bxd4
{[%clk 0:01:30.4]} 26... Rxc1+ {[%clk 0:01:11.3]} 27. Kg2 {[%clk 0:01:30.7]}
27... c5 {[%clk 0:01:05.2]} 28. Be5 {[%clk 0:01:16.7]} 28... c4 {[%clk
0:01:01.5]} 29. Qd7 {[%clk 0:01:15.2]} 29... Rc5 {[%clk 0:00:55.4]} 30. Bf4
{[%clk 0:00:56.2]} 30... Rc2 {[%clk 0:00:47.7]} 31. Qe8+ {[%clk 0:00:53.7]}
31... Kh7 {[%clk 0:00:47.1]} 32. e4 {[%clk 0:00:45.4]} 32... Rxf2+ {[%clk
0:00:41.8]} 33. Kxf2 {[%clk 0:00:43.3]} 33... c3 {[%clk 0:00:42.4]} 34. Qxf7
{[%clk 0:00:36.4]} 1-0

[Event "Late-Titled-Tuesday-Blitz-June-25-2024"]
[Site "Chess.com"]
[Date "2024.06.25"]
[Round "4"]
[White "jup1978"]
[Black "DryCounty"]
[Result "1-0"]
[WhiteElo "2491"]
[BlackElo "2642"]
[TimeControl "180+1"]
[EndTime "14:36:14 PDT"]
[Termination "jup1978 won by resignation"]

1. d4 {[%clk 0:02:54.9]} 1... Nf6 {[%clk 0:02:59.1]} 2. Nf3 {[%clk 0:02:54.1]}
2... g6 {[%clk 0:02:59.1]} 3. g3 {[%clk 0:02:53.7]} 3... Bg7 {[%clk 0:02:59.3]}
4. Bg2 {[%clk 0:02:54.6]} 4... O-O {[%clk 0:02:59.2]} 5. O-O {[%clk 0:02:55.5]}
5... d6 {[%clk 0:02:59.4]} 6. b3 {[%clk 0:02:55.1]} 6... a5 {[%clk 0:02:58.7]}
7. a4 {[%clk 0:02:53.8]} 7... Nc6 {[%clk 0:02:57.8]} 8. Bb2 {[%clk 0:02:54]}
8... Bf5 {[%clk 0:02:56.3]} 9. Nh4 {[%clk 0:02:49.1]} 9... Bd7 {[%clk
0:02:51.7]} 10. Re1 {[%clk 0:02:45]} 10... Re8 {[%clk 0:02:36.5]} 11. e4 {[%clk
0:02:40.8]} 11... e5 {[%clk 0:02:36.4]} 12. d5 {[%clk 0:02:36]} 12... Nb4 {[%clk
0:02:34.3]} 13. c4 {[%clk 0:02:34.2]} 13... Na6 {[%clk 0:02:31.6]} 14. Nc3
{[%clk 0:02:27.6]} 14... Nc5 {[%clk 0:02:31]} 15. Qc2 {[%clk 0:02:26.1]} 15...
c6 {[%clk 0:02:23.7]} 16. Ba3 {[%clk 0:02:23.4]} 16... Qb6 {[%clk 0:02:22.2]}
17. Rab1 {[%clk 0:02:19]} 17... Rac8 {[%clk 0:02:18.5]} 18. Qd1 {[%clk
0:02:12.2]} 18... cxd5 {[%clk 0:02:15.9]} 19. Nxd5 {[%clk 0:02:08.5]} 19... Nxd5
{[%clk 0:02:15]} 20. Qxd5 {[%clk 0:02:00.5]} 20... Be6 {[%clk 0:01:56.7]} 21.
Bxc5 {[%clk 0:01:57.8]} 21... Rxc5 {[%clk 0:01:37.7]} 22. Qd3 {[%clk 0:01:56.5]}
22... Qb4 {[%clk 0:01:10.8]} 23. Nf3 {[%clk 0:01:47.7]} 23... Rec8 {[%clk
0:01:07.4]} 24. Red1 {[%clk 0:01:43.7]} 24... R5c6 {[%clk 0:00:58.4]} 25. Ng5
{[%clk 0:01:42.3]} 25... Bd7 {[%clk 0:00:49.9]} 26. Bh3 {[%clk 0:01:39.7]} 26...
Bxh3 {[%clk 0:00:35]} 27. Nxh3 {[%clk 0:01:40.6]} 27... Bh6 {[%clk 0:00:33.4]}
28. Kg2 {[%clk 0:01:40.6]} 28... Qc5 {[%clk 0:00:27.9]} 29. Ng1 {[%clk
0:01:39.7]} 29... Rb6 {[%clk 0:00:27.3]} 30. Ne2 {[%clk 0:01:37.4]} 30... Rb4
{[%clk 0:00:21.6]} 31. Nc3 {[%clk 0:01:36]} 31... Qd4 {[%clk 0:00:16.8]} 32. Nd5
{[%clk 0:01:25.4]} 32... Qxd3 {[%clk 0:00:15.6]} 33. Rxd3 {[%clk 0:01:24.7]}
33... Bf8 {[%clk 0:00:16.1]} 34. Rbd1 {[%clk 0:01:19.4]} 34... Rc6 {[%clk
0:00:08.7]} 35. Nxb4 {[%clk 0:01:18.3]} 35... axb4 {[%clk 0:00:09.5]} 36. Rd5
{[%clk 0:01:18.4]} 36... Be7 {[%clk 0:00:04.7]} 37. Rb5 {[%clk 0:01:17.2]} 37...
Kg7 {[%clk 0:00:04.8]} 38. Rxb7 {[%clk 0:01:15.5]} 38... Bg5 {[%clk 0:00:03.6]}
1-0

[Event "Late-Titled-Tuesday-Blitz-June-25-2024"]
[Site "Chess.com"]
[Date "2024.06.25"]
[Round "4"]
[White "TheoSlade"]
[Black "LewAnatol"]
[Result "1-0"]
[WhiteElo "2481"]
[BlackElo "2277"]
[TimeControl "180+1"]
[EndTime "14:36:15 PDT"]
[Termination "TheoSlade won by resignation"]

1. d4 {[%clk 0:03:00.9]} 1... d5 {[%clk 0:02:59.5]} 2. c4 {[%clk 0:03:00.3]}
2... e6 {[%clk 0:03:00.1]} 3. Nf3 {[%clk 0:03:00.6]} 3... c5 {[%clk 0:03:00.6]}
4. cxd5 {[%clk 0:03:00.3]} 4... exd5 {[%clk 0:03:01]} 5. Nc3 {[%clk 0:03:00.5]}
5... Nc6 {[%clk 0:03:01.4]} 6. dxc5 {[%clk 0:03:00.7]} 6... d4 {[%clk
0:03:01.2]} 7. Na4 {[%clk 0:03:00.9]} 7... Bxc5 {[%clk 0:02:59.4]} 8. Nxc5
{[%clk 0:03:01.8]} 8... Qa5+ {[%clk 0:02:59.4]} 9. Qd2 {[%clk 0:03:02.4]} 9...
Qxc5 {[%clk 0:03:00.1]} 10. e3 {[%clk 0:03:02.9]} 10... dxe3 {[%clk 0:02:59.1]}
11. Qxe3+ {[%clk 0:03:03.8]} 11... Qxe3+ {[%clk 0:02:57.7]} 12. Bxe3 {[%clk
0:03:04.7]} 12... Nge7 {[%clk 0:02:52.1]} 13. Bc4 {[%clk 0:03:05.1]} 13... Bg4
{[%clk 0:02:47.2]} 14. Nd4 {[%clk 0:02:58.3]} 14... Nxd4 {[%clk 0:02:40.5]} 15.
Bxd4 {[%clk 0:02:58.6]} 15... O-O {[%clk 0:02:37.4]} 16. O-O {[%clk 0:02:53.3]}
16... Nc6 {[%clk 0:02:36.4]} 17. Be3 {[%clk 0:02:51.8]} 17... Rac8 {[%clk
0:02:32.8]} 18. Rac1 {[%clk 0:02:49.8]} 18... a6 {[%clk 0:02:22.5]} 19. h3
{[%clk 0:02:47.1]} 19... Bf5 {[%clk 0:02:15.8]} 20. Bd5 {[%clk 0:02:42.6]} 20...
Rfd8 {[%clk 0:01:54.8]} 21. Rfd1 {[%clk 0:02:37]} 21... h6 {[%clk 0:01:44.8]}
22. a3 {[%clk 0:02:29.1]} 22... Be6 {[%clk 0:01:35.1]} 23. Be4 {[%clk
0:02:24.6]} 23... f5 {[%clk 0:01:19.7]} 24. Rxd8+ {[%clk 0:02:20.1]} 24... Nxd8
{[%clk 0:01:15.5]} 25. Rxc8 {[%clk 0:02:20.8]} 25... Bxc8 {[%clk 0:01:14.9]} 26.
Bd5+ {[%clk 0:02:21.1]} 26... Kh7 {[%clk 0:01:08.5]} 27. Kf1 {[%clk 0:02:15.2]}
27... Kg6 {[%clk 0:01:08]} 28. Ke2 {[%clk 0:02:14.4]} 28... Ne6 {[%clk
0:01:05.1]} 29. Kd3 {[%clk 0:02:08.6]} 29... Kf6 {[%clk 0:01:04.2]} 30. Bd2
{[%clk 0:02:01.4]} 30... Nc7 {[%clk 0:00:56.7]} 31. Bc3+ {[%clk 0:01:59.5]}
31... Kg6 {[%clk 0:00:57.2]} 32. Bf3 {[%clk 0:01:59.5]} 32... Nb5 {[%clk
0:00:56]} 33. Be5 {[%clk 0:01:57.9]} 33... Na7 {[%clk 0:00:44.5]} 34. Kc4 {[%clk
0:01:56.7]} 34... Nc6 {[%clk 0:00:42.4]} 35. Bc3 {[%clk 0:01:56]} 35... b5+
{[%clk 0:00:27.3]} 36. Kc5 {[%clk 0:01:56.9]} 36... Nd8 {[%clk 0:00:26]} 37. Kb6
{[%clk 0:01:45.5]} 37... Ne6 {[%clk 0:00:25.2]} 38. Bb7 {[%clk 0:01:36.9]} 38...
Bxb7 {[%clk 0:00:18.5]} 39. Kxb7 {[%clk 0:01:37.8]} 39... Nc5+ {[%clk
0:00:18.2]} 40. Kb6 {[%clk 0:01:36.6]} 40... Na4+ {[%clk 0:00:11]} 41. Kxa6
{[%clk 0:01:35.5]} 41... Nxc3 {[%clk 0:00:11.1]} 42. bxc3 {[%clk 0:01:34]} 42...
f4 {[%clk 0:00:11.6]} 43. Kxb5 {[%clk 0:01:33.4]} 43... Kf5 {[%clk 0:00:11.9]}
44. a4 {[%clk 0:01:30.4]} 44... Ke4 {[%clk 0:00:12.3]} 45. a5 {[%clk 0:01:29.5]}
45... Kd3 {[%clk 0:00:12.9]} 46. a6 {[%clk 0:01:28.9]} 46... Ke2 {[%clk
0:00:13.5]} 47. a7 {[%clk 0:01:25.6]} 47... Kxf2 {[%clk 0:00:14]} 48. a8=Q
{[%clk 0:01:26.2]} 1-0

[Event "Late-Titled-Tuesday-Blitz-June-25-2024"]
[Site "Chess.com"]
[Date "2024.06.25"]
[Round "4"]
[White "Necromon"]
[Black "grzechu96"]
[Result "0-1"]
[WhiteElo "2557"]
[BlackElo "2773"]
[TimeControl "180+1"]
[EndTime "14:36:18 PDT"]
[Termination "grzechu96 won by resignation"]

1. Nf3 {[%clk 0:03:00.9]} 1... d5 {[%clk 0:02:59.9]} 2. d4 {[%clk 0:02:59.6]}
2... Nf6 {[%clk 0:02:59]} 3. c4 {[%clk 0:02:59.1]} 3... c6 {[%clk 0:02:59.3]} 4.
Bf4 {[%clk 0:02:52.2]} 4... dxc4 {[%clk 0:02:57.7]} 5. e3 {[%clk 0:02:49.6]}
5... b5 {[%clk 0:02:57.2]} 6. a4 {[%clk 0:02:47]} 6... Bb7 {[%clk 0:02:56.5]} 7.
Be2 {[%clk 0:02:41.5]} 7... a6 {[%clk 0:02:55.9]} 8. Na3 {[%clk 0:02:33.2]} 8...
e6 {[%clk 0:02:52.9]} 9. O-O {[%clk 0:02:32.1]} 9... Nbd7 {[%clk 0:02:52]} 10.
Nd2 {[%clk 0:02:19.7]} 10... Be7 {[%clk 0:02:48.2]} 11. e4 {[%clk 0:02:15.5]}
11... O-O {[%clk 0:02:46.2]} 12. Bf3 {[%clk 0:01:59.5]} 12... Qb6 {[%clk
0:02:42.3]} 13. Nc2 {[%clk 0:01:58.2]} 13... c5 {[%clk 0:02:39.5]} 14. e5 {[%clk
0:01:36.4]} 14... Nd5 {[%clk 0:02:35.8]} 15. Be3 {[%clk 0:01:36.7]} 15... cxd4
{[%clk 0:02:18.8]} 16. Bxd4 {[%clk 0:01:32.6]} 16... Bc5 {[%clk 0:02:18.5]} 17.
Bxc5 {[%clk 0:01:22.1]} 17... Nxc5 {[%clk 0:02:18.6]} 18. Ne4 {[%clk 0:01:15]}
18... Nd3 {[%clk 0:02:09.7]} 19. Ng5 {[%clk 0:00:57.7]} 19... h6 {[%clk
0:02:03.3]} 20. Nh3 {[%clk 0:00:40.4]} 20... Nxe5 {[%clk 0:02:01.3]} 21. a5
{[%clk 0:00:39.4]} 21... Qc7 {[%clk 0:01:59.2]} 22. Qe2 {[%clk 0:00:32.8]} 22...
Nd3 {[%clk 0:01:54]} 23. Ne3 {[%clk 0:00:20.3]} 23... Nxe3 {[%clk 0:01:31.4]}
24. fxe3 {[%clk 0:00:21.2]} 24... Bxf3 {[%clk 0:01:31.6]} 25. Rxf3 {[%clk
0:00:20.8]} 25... Qe5 {[%clk 0:01:32]} 26. Rg3 {[%clk 0:00:19.7]} 26... Qxb2
{[%clk 0:01:28.8]} 27. Qxb2 {[%clk 0:00:14.4]} 27... Nxb2 {[%clk 0:01:29.7]} 28.
Nf4 {[%clk 0:00:14.6]} 28... Rfd8 {[%clk 0:01:19.6]} 29. e4 {[%clk 0:00:07.2]}
29... Rac8 {[%clk 0:01:15.2]} 30. Nh5 {[%clk 0:00:06.6]} 30... g6 {[%clk
0:01:15]} 31. Nf6+ {[%clk 0:00:06.4]} 31... Kg7 {[%clk 0:01:15.7]} 32. e5 {[%clk
0:00:07]} 32... c3 {[%clk 0:01:14.2]} 33. Rf1 {[%clk 0:00:03.5]} 33... Rd1
{[%clk 0:01:12.8]} 34. Nh5+ {[%clk 0:00:03.5]} 34... Kf8 {[%clk 0:01:11.9]} 35.
Rf3 {[%clk 0:00:02.4]} 0-1